fUST/lending_fUST_20250615
["ID","MTS","AMOUNT","RATE_DAILY","PERIOD"]
[365965613,1749998958264,-500.0,0.00018776,2]
[365965614,1749998958287,-500.0,0.00018776,2]
[365965615,1749998958311,-500.0,0.00018776,2]
[365965616,1749998958335,-500.0,0.00018776,2]
[365965617,1749998958360,-182.44478028,0.00018776,2]
[365965618,1749998958383,-500.0,0.00018776,2]
[365965619,1749998958408,-500.0,0.00018776,2]
[365965620,1749998958431,-500.0,0.00018776,2]
[365965621,1749998958457,-500.0,0.00018776,2]
[365965622,1749998958481,-500.0,0.00018776,2]
[365965623,1749998958506,-500.0,0.00018776,2]
[365965624,1749998958530,-500.0,0.00018776,2]
[365965625,1749998958553,-500.0,0.00018776,2]
[365965626,1749998958577,-500.0,0.00018776,2]
[365965627,1749998958602,-500.0,0.00018776,2]
[365965628,1749998958625,-500.0,0.00018776,2]
[365965629,1749998958649,-500.0,0.00018776,2]
[365965630,1749998958673,-500.0,0.00018776,2]
[365965631,1749998958696,-500.0,0.00018776,2]
[365965632,1749998958720,-500.0,0.00018776,2]
[365965633,1749998958744,-500.0,0.00018776,2]
[365965634,1749998958768,-500.0,0.00018776,2]
[365965635,1749998958791,-336.06885972,0.00018776,2]
[365965636,1749998958814,-500.0,0.00018776,2]
[365965637,1749998958838,-500.0,0.00018776,2]
[365965638,1749998958861,-500.0,0.00018776,2]
[365965639,1749998958883,-500.0,0.00018776,2]
[365965640,1749998958907,-500.0,0.00018776,2]
[365965641,1749998958931,-328.86312414,0.00018776,2]
[365965642,1749998962196,-171.13687586,0.00018776,2]
[365965643,1749998962221,-500.0,0.00018776,2]
[365965644,1749998962246,-500.0,0.00018776,2]
[365965645,1749998962271,-500.0,0.00018776,2]
[365965646,1749998962296,-500.0,0.00018776,2]
[365965647,1749998962320,-500.0,0.00018776,2]
[365965648,1749998962345,-500.0,0.00018776,2]
[365965649,1749998962373,-500.0,0.00018776,2]
[365965650,1749998962398,-500.0,0.00018776,2]
[365965651,1749998962425,-500.0,0.00018776,2]
[365965652,1749998962453,-224.02829881,0.00018776,2]
[365965653,1749998962478,-500.0,0.00018776,2]
[365965654,1749998962503,-500.0,0.00018776,2]
[365965655,1749998962530,-500.0,0.00018776,2]
[365965656,1749998962555,-500.0,0.00018776,2]
[365965657,1749998962580,-500.0,0.00018776,2]
[365965658,1749998962605,-500.0,0.00018776,2]
[365965659,1749998962630,-500.0,0.00018776,2]
[365965660,1749998962654,-500.0,0.00018776,2]
[365965661,1749998962679,-500.0,0.00018776,2]
[365965662,1749998962704,-500.0,0.00018776,2]
[365965663,1749998962727,-500.0,0.00018776,2]
[365965664,1749998962751,-500.0,0.00018776,2]
[365965665,1749998962776,-161.96638652,0.00018776,2]
[365965666,1749998962800,-500.0,0.00018776,2]
[365965667,1749998962826,-536.73917351,0.00018777,2]
[365965668,1749998962852,-536.73917351,0.00018777,2]
[365965669,1749998962878,-536.73917351,0.00018777,2]
[365965670,1749998962904,-536.73917351,0.00018777,2]
[365965671,1749998962930,-536.73917351,0.00018777,2]
[365965672,1749998962955,-536.73917351,0.00018777,2]
[365965673,1749998962979,-536.73917351,0.00018777,2]
[365965674,1749998963004,-536.73917351,0.00018777,2]
[365965675,1749998963029,-536.73917351,0.00018777,2]
[365965676,1749998963054,-536.73917351,0.00018777,2]
[365965677,1749998963081,-553.51227269,0.00018777,2]
[365965678,1749998963108,-553.51227269,0.00018777,2]
[365965679,1749998963135,-553.51227269,0.00018777,2]
[365965680,1749998963162,-553.51227269,0.00018777,2]
[365965681,1749998963190,-553.51227269,0.00018777,2]
[365965682,1749998963216,-553.51227269,0.00018777,2]
[365965683,1749998963243,-553.51227269,0.00018777,2]
[365965684,1749998963270,-553.51227269,0.00018777,2]
[365965685,1749998963297,-553.51227269,0.00018777,2]
[365965686,1749998963325,-552.09301045,0.00018777,2]
[365965687,1749998963352,-552.09301045,0.00018777,2]
[365965688,1749998963380,-552.09301045,0.00018777,2]
[365965689,1749998963409,-552.09301045,0.00018777,2]
[365965690,1749998963437,-552.09301045,0.00018777,2]
[365965691,1749998963465,-552.09301045,0.00018777,2]
[365965692,1749998963493,-552.09301045,0.00018777,2]
[365965693,1749998963517,-300.0,0.00018777,2]
[365965694,1749998963541,-1200.0,0.00018777,2]
[365965695,1749998963565,-300.0,0.00018777,2]
[365965696,1749998963588,-24900.0,0.00018785,2]
[365965697,1749998963610,-676.92323472,0.000189,2]
[365965698,1749998963632,-195.76090948,0.00019,2]
[365965699,1749998963655,-1219.24215719,0.00019078,2]
[365965700,1749998963676,-883.73910568,0.00019081,2]
[365965701,1749998999863,155.0,0.00019081,2]
[365965705,1749999015752,14774.89259486,0.00018175,2]
[365965742,1749999032080,-2552.1559576,0.00018175,2]
[365965765,1749999032283,-7572.95144754,0.00018175,2]
[365965767,1749999032293,-249.99,0.00019156,3]
[365965769,1749999032304,-750.0,0.00019156,3]
[365965771,1749999032313,-165.91,0.00019156,3]
[365965774,1749999032322,-497.73,0.00019156,3]
[365965778,1749999032332,-300.0,0.00019165,2]
[365965781,1749999032341,-300.0,0.00019165,2]
[365965784,1749999032351,-1200.0,0.00019165,2]
[365965786,1749999032360,-16000.0,0.00019166,2]
[365965790,1749999032370,-11134.32481103,0.00019166,2]
[365965793,1749999032379,-296.413,0.00019166,2]
[365965795,1749999032389,-499.99,0.00019168,3]
[365965797,1749999032398,-1000.0,0.00019177,2]
[365965799,1749999032407,-1000.0,0.00019177,2]
[365965801,1749999032417,-1000.0,0.00019177,2]
[365965803,1749999032429,-1000.0,0.00019177,2]
[365965805,1749999032439,-1000.0,0.00019177,2]
[365965807,1749999032449,-1000.0,0.00019177,2]
[365965809,1749999032458,-1000.0,0.00019177,2]
[365965811,1749999032468,-1000.0,0.00019177,2]
[365965813,1749999032478,-1000.0,0.00019177,2]
[365965815,1749999032488,-1000.0,0.00019177,2]
[365965817,1749999032497,-725.12535923,0.00019177,2]
[365965819,1749999032507,-160.0,0.00019177,2]
[365965821,1749999032517,-1000.0,0.00019177,2]
[365965823,1749999032527,-1000.0,0.00019177,2]
[365965825,1749999032536,-1000.0,0.00019177,2]
[365965827,1749999032545,-1017.92686339,0.00019177,2]
[365965829,1749999032555,-460.0,0.00019178,2]
[365965831,1749999032565,-430.0,0.00019178,2]
[365965833,1749999032575,-460.0,0.00019178,2]
[365965835,1749999032585,-460.0,0.00019178,2]
[365965837,1749999032594,-200.0,0.00019178,10]
[365965839,1749999032605,-200.0,0.00019178,10]
[365965841,1749999032614,-521.87119361,0.00019178,2]
[365965843,1749999032624,-516.93592843,0.00019178,2]
[365965845,1749999032634,-460.0,0.00019178,2]
[365965847,1749999032643,-460.0,0.00019178,2]
[365965849,1749999032653,-317.12244758,0.00019178,2]
[365965851,1749999032663,-460.0,0.00019178,2]
[365965853,1749999032672,-584.39130876,0.00019178,2]
[365965855,1749999032682,-460.0,0.00019178,2]
[365965857,1749999032692,-460.0,0.00019178,2]
[365965859,1749999032701,-460.0,0.00019178,2]
[365965861,1749999032710,-460.0,0.00019178,2]
[365965863,1749999032719,-460.0,0.00019178,2]
[365965865,1749999032729,-460.0,0.00019178,2]
[365965867,1749999032738,-460.0,0.00019178,2]
[365965869,1749999032748,-430.0,0.00019178,2]
[365965871,1749999032758,-460.0,0.00019178,2]
[365965873,1749999032768,-460.0,0.00019178,2]
[365965875,1749999032777,-460.0,0.00019178,2]
[365965878,1749999032787,-460.0,0.00019178,2]
[365965880,1749999032797,-460.0,0.00019178,2]
[365965882,1749999032809,-460.0,0.00019178,2]
[365965884,1749999032820,-525.94314596,0.00019178,2]
[365965885,1749999032830,-460.0,0.00019178,2]
[365965888,1749999032840,-500.0,0.00019178,2]
[365965890,1749999032850,-500.0,0.00019178,2]
[365965892,1749999032862,-500.0,0.00019178,2]
[365965894,1749999032872,-500.0,0.00019178,2]
[365965896,1749999032884,-500.0,0.00019178,2]
[365965898,1749999032894,-574.85,0.00019178,2]
[365965900,1749999032905,-460.0,0.00019178,2]
[365965902,1749999032915,-430.0,0.00019178,2]
[365965904,1749999032925,-189.87853009,0.00019178,2]
[365965906,1749999032936,-460.0,0.00019178,2]
[365965908,1749999032945,-460.0,0.00019178,2]
[365965910,1749999032954,-571.53,0.00019178,2]
[365965912,1749999032964,-420.0,0.00019178,2]
[365965914,1749999032973,-460.0,0.00019178,2]
[365965916,1749999032983,-460.0,0.00019178,2]
[365965918,1749999032992,-440.0,0.00019178,2]
[365965920,1749999033001,-420.0,0.00019178,2]
[365965922,1749999033011,-460.0,0.00019178,2]
[365965924,1749999033021,-460.0,0.00019178,2]
[365965926,1749999033031,-186.39925773,0.00019178,2]
[365965928,1749999033041,-460.0,0.00019178,2]
[365965930,1749999033055,-460.0,0.00019178,2]
[365965932,1749999033064,-432.85413838,0.00019178,2]
[365965934,1749999033074,-440.0,0.00019178,2]
[365965935,1749999033083,-460.0,0.00019178,2]
[365965937,1749999033092,-457.27155684,0.00019178,2]
[365965939,1749999033103,-1339.6,0.00019178,2]
[365965941,1749999033113,-565.15499267,0.00019178,2]
[365965943,1749999033123,-1739.19,0.00019178,2]
[365965946,1749999033132,-460.0,0.00019178,2]
[365965948,1749999033142,-2000.6,0.00019178,2]
[365965950,1749999033151,-530.02470924,0.00019178,2]
[365965952,1749999033162,-460.0,0.00019178,2]
[365965954,1749999033172,-400.0,0.00019178,2]
[365965956,1749999033182,-1562.8,0.00019178,2]
[365965958,1749999033192,-430.0,0.00019178,2]
[365965960,1749999033201,-460.0,0.00019178,2]
[365965962,1749999033211,-524.37848364,0.00019178,2]
[365965964,1749999033220,-501.77666421,0.00019178,2]
[365965966,1749999033230,-440.0,0.00019178,2]
[365965968,1749999033241,-1719.4,0.00019178,2]
[365965970,1749999033250,-460.0,0.00019178,2]
[365965972,1749999033260,-490.29,0.00019178,2]
[365965974,1749999033270,-460.0,0.00019178,2]
[365965976,1749999033280,-430.0,0.00019178,2]
[365965978,1749999033290,-460.0,0.00019178,2]
[365965980,1749999033303,-608.54,0.00019178,2]
[365965982,1749999033313,-1436.8,0.00019178,2]
[365965984,1749999033323,-617.03,0.00019178,2]
[365965986,1749999033333,-240.03117635,0.00019178,2]
[365965988,1749999033344,-779.74,0.00019178,2]
[365965990,1749999033354,-440.0,0.00019178,2]
[365965992,1749999033364,-460.0,0.00019178,2]
[365965994,1749999033375,-400.0,0.00019178,2]
[365965997,1749999033386,-699.59,0.00019178,2]
[365965999,1749999033396,-400.0,0.00019178,2]
[365966001,1749999033407,-572.79031165,0.00019178,2]
[365966003,1749999033417,-460.0,0.00019178,2]
[365966005,1749999033432,-460.0,0.00019178,2]
[365966007,1749999033444,-460.0,0.00019178,2]
[365966009,1749999033454,-460.0,0.00019178,2]
[365966011,1749999033464,-460.0,0.00019178,2]
[365966013,1749999033474,-390.0,0.00019178,2]
[365966015,1749999033484,-460.0,0.00019178,2]
[365966017,1749999033494,-440.0,0.00019178,2]
[365966019,1749999033504,-420.0,0.00019178,2]
[365966021,1749999033516,-500.0,0.00019178,2]
[365966023,1749999033526,-500.0,0.00019178,2]
[365966025,1749999033536,-510.37670607,0.00019178,2]
[365966042,1749999033692,-460.0,0.00019178,2]
[365966044,1749999033703,-460.0,0.00019178,2]
[365966046,1749999033713,-460.0,0.00019178,2]
[365966048,1749999033724,-460.0,0.00019178,2]
[365966050,1749999033735,-460.0,0.00019178,2]
[365966052,1749999033746,-600.0,0.00019178,2]
[365966054,1749999033756,-460.0,0.00019178,2]
[365966056,1749999033767,-261.67870923,0.00019178,2]
[365966058,1749999033777,-460.0,0.00019178,2]
[365966060,1749999033788,-460.0,0.00019178,2]
[365966062,1749999033798,-712.36,0.00019178,2]
[365966064,1749999033809,-460.0,0.00019178,2]
[365966066,1749999033820,-1000.0,0.00019178,2]
[365966068,1749999033830,-864.74,0.00019178,2]
[365966070,1749999033843,-513.0212566,0.00019178,2]
[365966072,1749999033853,-380.0,0.00019178,2]
[365966074,1749999033865,-460.0,0.00019178,2]
[365966076,1749999033875,-460.0,0.00019178,2]
[365966078,1749999033885,-460.0,0.00019178,2]
[365966080,1749999033894,-460.0,0.00019178,2]
[365966082,1749999033904,-460.0,0.00019178,2]
[365966084,1749999033914,-460.0,0.00019178,2]
[365966086,1749999033924,-589.38521252,0.00019178,2]
[365966088,1749999033933,-460.0,0.00019178,2]
[365966090,1749999033944,-511.95392725,0.00019178,2]
[365966092,1749999033953,-1337.69,0.00019178,2]
[365966093,1749999033963,-263.76,0.00019178,2]
[365966095,1749999033974,-2130.12,0.00019178,2]
[365966097,1749999033985,-232.1155073,0.00019178,2]
[365966099,1749999033996,-460.0,0.00019178,2]
[365966101,1749999034006,-440.0,0.00019178,2]
[365966103,1749999034016,-460.0,0.00019178,2]
[365966105,1749999034029,-1180.6,0.00019178,2]
[365966107,1749999034039,-221.458091,0.00019178,2]
[365966109,1749999034052,-500.0,0.0001936,2]
[365966112,1749999034062,-500.0,0.0001941,2]
[365966114,1749999034072,-500.0,0.00019418,2]
[365966116,1749999034083,-500.0,0.00019418,2]
[365966118,1749999034094,-216.01084162,0.00019422,2]
[365966120,1749999034104,-509.62566211,0.00019433,2]
[365966121,1749999034115,-500.0,0.00019433,2]
[365966123,1749999034125,-500.0,0.00019433,2]
[365966125,1749999034135,-500.0,0.00019438,2]
[365966127,1749999034145,-500.0,0.00019441,2]
[365966130,1749999034155,-481.35058316,0.00019448,2]
[365966132,1749999034166,-505.4837933,0.00019448,2]
[365966134,1749999034176,-459.16376617,0.00019452,2]
[365966136,1749999034188,-420.0,0.00019452,2]
[365966138,1749999034198,-420.0,0.00019452,2]
[365966140,1749999034208,-460.0,0.00019452,2]
[365966142,1749999034218,-460.0,0.00019452,2]
[365966144,1749999034228,-420.0,0.00019452,2]
[365966146,1749999034238,-461.99,0.00019452,2]
[365966148,1749999034248,-460.0,0.00019452,2]
[365966150,1749999034259,-460.0,0.00019452,2]
[365966152,1749999034269,-555.67,0.00019452,2]
[365966154,1749999034279,-380.0,0.00019452,2]
[365966156,1749999034289,-460.0,0.00019452,2]
[365966158,1749999034299,-460.0,0.00019452,2]
[365966160,1749999034311,-400.0,0.00019452,2]
[365966162,1749999034321,-460.0,0.00019452,2]
[365966164,1749999034331,-513.89694516,0.00019452,2]
[365966166,1749999034342,-460.0,0.00019452,2]
[365966168,1749999034352,-460.0,0.00019452,2]
[365966169,1749999034362,-460.0,0.00019452,2]
[365966171,1749999034372,-460.0,0.00019452,2]
[365966174,1749999034383,-371.70170255,0.00019452,2]
[365966175,1749999034393,-571.53,0.00019452,2]
[365966177,1749999034403,-460.0,0.00019452,2]
[365966179,1749999034413,-606.21705771,0.00019452,2]
[365966181,1749999034423,-490.16,0.00019452,2]
[365966183,1749999034434,-460.0,0.00019452,2]
[365966185,1749999034444,-459.54524491,0.00019452,2]
[365966187,1749999034454,-1339.6,0.00019452,2]
[365966190,1749999034464,-1739.19,0.00019452,2]
[365966192,1749999034475,-2000.6,0.00019452,2]
[365966194,1749999034485,-1562.8,0.00019452,2]
[365966195,1749999034496,-460.0,0.00019452,2]
[365966198,1749999034506,-1719.4,0.00019452,2]
[365966199,1749999034516,-460.0,0.00019452,2]
[365966201,1749999034527,-490.29,0.00019452,2]
[365966203,1749999034537,-460.0,0.00019452,2]
[365966205,1749999034546,-403.04626393,0.00019452,2]
[365966207,1749999034558,-1436.8,0.00019452,2]
[365966209,1749999034568,-608.54,0.00019452,2]
[365966211,1749999034578,-617.03,0.00019452,2]
[365966213,1749999034588,-779.74,0.00019452,2]
[365966215,1749999034597,-460.0,0.00019452,2]
[365966218,1749999034607,-699.59,0.00019452,2]
[365966219,1749999034616,-460.0,0.00019452,2]
[365966221,1749999034626,-460.0,0.00019452,2]
[365966223,1749999034635,-460.0,0.00019452,2]
[365966225,1749999034645,-460.0,0.00019452,2]
[365966227,1749999034655,-460.0,0.00019452,2]
[365966229,1749999034664,-460.0,0.00019452,2]
[365966232,1749999034675,-460.0,0.00019452,2]
[365966234,1749999034684,-460.0,0.00019452,2]
[365966236,1749999034694,-460.0,0.00019452,2]
[365966238,1749999034703,-460.0,0.00019452,2]
[365966240,1749999034712,-712.36,0.00019452,2]
[365966242,1749999034722,-460.0,0.00019452,2]
[365966244,1749999034731,-1012.85984742,0.00019452,2]
[365966246,1749999034741,-864.74,0.00019452,2]
[365966248,1749999034750,-460.0,0.00019452,2]
[365966250,1749999034759,-460.0,0.00019452,2]
[365966252,1749999034770,-278.00474642,0.00019452,2]
[365966254,1749999034779,-460.0,0.00019452,2]
[365966256,1749999034788,-460.0,0.00019452,2]
[365966258,1749999034798,-460.0,0.00019452,2]
[365966260,1749999034808,-304.98,0.00019452,2]
[365966262,1749999034818,-1337.69,0.00019452,2]
[365966264,1749999034827,-2130.12,0.00019452,2]
[365966265,1749999034836,-556.58963482,0.00019452,2]
[365966266,1749999034845,-460.0,0.00019452,2]
[365966267,1749999034854,-1180.6,0.00019452,2]
[365966268,1749999034863,-500.0,0.00019458,2]
[365966269,1749999034872,-269.53884081,0.00019479,2]
[365966270,1749999034881,-500.0,0.00019485,2]
[365966271,1749999034890,-500.0,0.00019485,2]
[365966272,1749999034899,-500.0,0.00019485,2]
[365966273,1749999034908,-500.0,0.00019485,2]
[365966274,1749999034918,-504.04113863,0.00019485,2]
[365966275,1749999034927,-415.03844314,0.00019485,2]
[365966276,1749999034937,-500.0,0.00019485,2]
[365966277,1749999034946,-500.0,0.00019485,2]
[365966278,1749999034955,-500.654928,0.00019485,2]
[365966279,1749999034964,-500.0,0.00019485,2]
[365966280,1749999034973,-500.0,0.00019494,2]
[365966281,1749999034983,-500.0,0.00019494,2]
[365966282,1749999034992,-500.0,0.00019494,2]
[365966283,1749999035003,-503.8802921,0.000195,2]
[365966284,1749999035012,-151.0,0.00019617,2]
[365966285,1749999035021,-23325.364028,0.00019626,2]
[365966286,1749999035030,-500.0,0.0001967,2]
[365966287,1749999035040,-500.0,0.0001967,2]
[365966288,1749999035049,-500.0,0.0001967,2]
[365966289,1749999035058,-500.0,0.0001967,2]
[365966290,1749999035068,-502.48789432,0.0001967,2]
[365966291,1749999035077,-421.12771399,0.0001967,2]
[365966292,1749999035086,-460.0,0.00019726,2]
[365966293,1749999035095,-460.0,0.00019726,2]
[365966294,1749999035105,-330.0,0.00019726,2]
[365966296,1749999035115,-460.0,0.00019726,2]
[365966298,1749999035125,-384.68,0.00019726,2]
[365966300,1749999035134,-460.0,0.00019726,2]
[365966302,1749999035144,-460.0,0.00019726,2]
[365966304,1749999035153,-340.0,0.00019726,2]
[365966306,1749999035163,-571.53,0.00019726,2]
[365966308,1749999035172,-420.0,0.00019726,2]
[365966310,1749999035182,-380.0,0.00019726,2]
[365966312,1749999035191,-1339.6,0.00019726,2]
[365966314,1749999035200,-1739.19,0.00019726,2]
[365966316,1749999035209,-2000.6,0.00019726,2]
[365966318,1749999035219,-1562.8,0.00019726,2]
[365966320,1749999035229,-460.0,0.00019726,2]
[365966322,1749999035238,-1719.4,0.00019726,2]
[365966324,1749999035248,-420.0,0.00019726,2]
[365966326,1749999035258,-460.0,0.00019726,2]
[365966328,1749999035268,-490.29,0.00019726,2]
[365966330,1749999035278,-1436.8,0.00019726,2]
[365966332,1749999035287,-608.54,0.00019726,2]
[365966334,1749999035297,-617.03,0.00019726,2]
[365966336,1749999035307,-779.74,0.00019726,2]
[365966338,1749999035317,-460.0,0.00019726,2]
[365966340,1749999035327,-699.59,0.00019726,2]
[365966342,1749999035337,-460.0,0.00019726,2]
[365966344,1749999035347,-460.0,0.00019726,2]
[365966346,1749999035357,-460.0,0.00019726,2]
[365966348,1749999035367,-460.0,0.00019726,2]
[365966350,1749999035377,-295.67577443,0.00019726,2]
[365966352,1749999035386,-460.0,0.00019726,2]
[365966354,1749999035395,-354.03484268,0.00019726,2]
[365966356,1749999035405,-712.36,0.00019726,2]
[365966358,1749999035415,-460.0,0.00019726,2]
[365966360,1749999035426,-864.74,0.00019726,2]
[365966363,1749999035439,-460.0,0.00019726,2]
[365966365,1749999035448,-460.0,0.00019726,2]
[365966366,1749999035457,-460.0,0.00019726,2]
[365966368,1749999035467,-489.47,0.00019726,2]
[365966371,1749999035477,-460.0,0.00019726,2]
[365966372,1749999035486,-1337.69,0.00019726,2]
[365966374,1749999035496,-2130.12,0.00019726,2]
[365966376,1749999035506,-460.0,0.00019726,2]
[365966378,1749999035516,-1180.6,0.00019726,2]
[365966381,1749999035526,-1219.24215716,0.000199,2]
[365966382,1749999035535,-670.44164281,0.00019958,2]
[365966384,1749999035545,-500.0,0.00019966,2]
[365966386,1749999035555,-1000.0,0.00019966,2]
[365966388,1749999035565,-350.24060396,0.00019981,2]
[365966390,1749999035575,-521.66822977,0.00019989,2]
[365966392,1749999035585,-460.0,0.0002,2]
[365966394,1749999035594,-460.0,0.0002,2]
[365966396,1749999035604,-516.29511748,0.0002,2]
[365966398,1749999035613,-20000.0,0.0002,3]
[365966400,1749999035623,-460.0,0.0002,2]
[365966402,1749999035633,-199.87390552,0.0002,2]
[365966404,1749999035643,-571.53,0.0002,2]
[365966406,1749999035652,-1339.6,0.0002,2]
[365966408,1749999035662,-1739.19,0.0002,2]
[365966410,1749999035672,-2000.6,0.0002,2]
[365966412,1749999035681,-1562.8,0.0002,2]
[365966414,1749999035690,-460.0,0.0002,2]
[365966416,1749999035699,-1719.4,0.0002,2]
[365966418,1749999035709,-460.0,0.0002,2]
[365966420,1749999035718,-490.29,0.0002,2]
[365966422,1749999035728,-1436.8,0.0002,2]
[365966424,1749999035737,-608.54,0.0002,2]
[365966426,1749999035747,-617.03,0.0002,2]
[365966449,1749999035964,-779.74,0.0002,2]
[365966451,1749999035974,-699.59,0.0002,2]
[365966453,1749999035984,-460.0,0.0002,2]
[365966455,1749999035994,-460.0,0.0002,2]
[365966457,1749999036004,-460.0,0.0002,2]
[365966459,1749999036013,-460.0,0.0002,2]
[365966461,1749999036024,-712.36,0.0002,2]
[365966463,1749999036034,-460.0,0.0002,2]
[365966465,1749999036043,-864.74,0.0002,2]
[365966467,1749999036054,-845.25843836,0.0002,3]
[365966469,1749999036064,-12535.62630729,0.0002,3]
[365966471,1749999036073,-460.0,0.0002,2]
[365966473,1749999036082,-460.0,0.0002,2]
[365966475,1749999036091,-538.01057851,0.0002,2]
[365966477,1749999036101,-460.0,0.0002,2]
[365966479,1749999036111,-1337.69,0.0002,2]
[365966481,1749999036120,-2130.12,0.0002,2]
[365966483,1749999036130,-462.76,0.0002,2]
[365966485,1749999036141,-1180.6,0.0002,2]
[365966488,1749999036152,-1000.0,0.00020006,2]
[365966490,1749999036161,-421.47928408,0.00020033,2]
[365966492,1749999036170,-505.3847036,0.00020033,2]
[365966494,1749999036180,-534.13547628,0.00020033,2]
[365966495,1749999036190,-460.435128,0.00020187,2]
[365966497,1749999036199,-1000.0,0.00020218,2]
[365966499,1749999036208,-460.0,0.00020273,2]
[365966501,1749999036217,-460.0,0.00020273,2]
[365966503,1749999036227,-460.0,0.00020273,2]
[365966505,1749999036236,-571.53,0.00020273,2]
[365966507,1749999036246,-1339.6,0.00020273,2]
[365966509,1749999036255,-1739.19,0.00020273,2]
[365966512,1749999036265,-2000.6,0.00020273,2]
[365966513,1749999036274,-1562.8,0.00020273,2]
[365966515,1749999036283,-460.0,0.00020273,2]
[365966517,1749999036293,-1719.4,0.00020273,2]
[365966519,1749999036302,-460.0,0.00020273,2]
[365966522,1749999036312,-490.29,0.00020273,2]
[365966524,1749999036322,-1436.8,0.00020273,2]
[365966526,1749999036331,-608.54,0.00020273,2]
[365966527,1749999036341,-617.03,0.00020273,2]
[365966529,1749999036350,-779.74,0.00020273,2]
[365966531,1749999036360,-699.59,0.00020273,2]
[365966534,1749999036370,-460.0,0.00020273,2]
[365966536,1749999036380,-460.0,0.00020273,2]
[365966538,1749999036390,-460.0,0.00020273,2]
[365966540,1749999036398,-460.0,0.00020273,2]
[365966542,1749999036409,-712.36,0.00020273,2]
[365966544,1749999036418,-460.0,0.00020273,2]
[365966546,1749999036430,-864.74,0.00020273,2]
[365966548,1749999036440,-460.0,0.00020273,2]
[365966550,1749999036449,-256.39023076,0.00020273,2]
[365966552,1749999036460,-152.02,0.00020273,2]
[365966554,1749999036471,-1337.69,0.00020273,2]
[365966556,1749999036481,-2130.12,0.00020273,2]
[365966558,1749999036491,-1180.6,0.00020273,2]
[365966560,1749999036500,-160.0,0.00020322,2]
[365966562,1749999036511,-160.0,0.00020322,2]
[365966564,1749999036522,-213.32089821,0.00020322,2]
[365966566,1749999036531,-835.55256958,0.00020322,2]
[365966568,1749999036541,-12535.62630729,0.00020322,2]
[365966570,1749999036550,-160.0,0.00020322,2]
[365966572,1749999036560,-160.0,0.00020322,2]
[365966574,1749999036569,-845.25843836,0.00020322,2]
[365966576,1749999036578,-424.47602138,0.00020322,2]
[365966577,1749999036588,-160.0,0.00020322,2]
[365966579,1749999036598,-160.0,0.00020322,2]
[365966581,1749999036607,-229.86375354,0.00020322,2]
[365966583,1749999036616,-420.0,0.00020471,2]
[365966585,1749999036625,-251.215,0.00020497,2]
[365966587,1749999036635,-1000.0,0.00020514,2]
[365966589,1749999036644,-499.98,0.00020526,3]
[365966591,1749999036653,-331.82,0.00020526,3]
[365966593,1749999036663,-999.98,0.00020538,3]
[365966595,1749999036672,-500.0,0.00020547,2]
[365966597,1749999036682,-460.0,0.00020547,2]